Cogmind - Beta 17.1 @@@ ROGUE MODE // 2026.09.03 @ 13:36:19 Player: 4R-ZE3 Result: Destroyed by Y-45 Defender with Heavy Assault Rifle Performance ------------- Evolutions (2) 1000 Regions Visited (5) 1000 Robots Destroyed (46) 230 Value Destroyed (1157) 1157 Prototype IDs (27) 540 Alien Tech Used (0) 0 Bonus (7040) 7040 TOTAL SCORE: 10967 Bonus ------- High Alert Combat Kills 140 Follower Combat Kills 250 Prayed to X0-1V1 5000 Major X0-1V1 Interference 1350 Aligned with FarCom 300 Cogmind --------- Core Integrity 0/300 Matter 300/300 Energy 100/100 System Corruption 0% Temperature Cool (9) Movement Core (200) Ox3 Location -8/Materials Parts ------- > --- POWER (1) -------- (None) > --- PROPULSION (4) --- (None) > --- UTILITY (3) ------ Improved Heat Sink Small Storage Unit Self-contained Transmogrifier > --- WEAPON (3) ------- Autogun (fused) Scythe (fused) > --- INVENTORY (9) ---- Heat Sink Improved Heat Sink Improved Heat Sink Advanced Targeting Computer Light Armor Plating Supersonic Drone Bay (1/1) X0-1V1's Piety Tracker Peak State ------------ > --- POWER ------------ Light Angular Momentum Engine > --- PROPULSION ------- Light Treads Light Treads Improved Treads Improved Treads > --- UTILITY ---------- Improved Heat Sink Small Storage Unit Self-contained Transmogrifier > --- WEAPON ----------- Heavy Particle Gun Advanced Beam Rifle Assault Rifle > --- INVENTORY -------- Light Treads Heat Sink Advanced Targeting Computer Light Armor Plating Supersonic Drone Bay X0-1V1's Piety Tracker Particle Gun [Rating: 35] Favorites ----------- Power Ion Engine Engine Ion Engine Power Core Light Nuclear Core Propulsion Light Treads Treads Light Treads Leg Aluminum Leg Wheel Wheel Utility Small Storage Unit Device Self-contained Transmogrifier Storage Small Storage Unit Weapon Assault Rifle Energy Gun Advanced Beam Rifle Ballistic Gun Assault Rifle Launcher Mini Grenade Launcher Slashing Weapon Scythe Build | -11 -10 -10 -10 -9 -8 ------- Run | Yrd Mat Min Exi Min Mat Slots Evolved 4 | . . . . . 4 Power . | . . . . . . Propulsion 2 | . . . . . 2 Utility 1 | . . . . . 1 Weapon 1 | . . . . . 1 Parts Attached 30 | 6 5 . . . 19 Power 4 | 1 1 . . . 2 Engine 4 | 1 1 . . . 2 Core . | . . . . . . Reactor . | . . . . . . Propulsion 12 | 2 2 . . . 8 Treads 9 | 2 1 . . . 6 Leg . | . . . . . . Wheel 3 | . 1 . . . 2 Hover . | . . . . . . Flight . | . . . . . . Utility 6 | 1 2 . . . 3 Device 5 | . 2 . . . 3 Storage 1 | 1 . . . . . Processor . | . . . . . . Hackware . | . . . . . . Protection . | . . . . . . Artifact . | . . . . . . Weapon 8 | 2 . . . . 6 Energy Gun 5 | . . . . . 5 Energy Cannon . | . . . . . . Ballistic Gun 3 | 2 . . . . 1 Ballistic Cannon . | . . . . . . Launcher . | . . . . . . Special Weapon . | . . . . . . Impact Weapon . | . . . . . . Slashing Weapon . | . . . . . . Piercing Weapon . | . . . . . . Special Melee Weapon . | . . . . . . Unidentified Prototypes . | . . . . . . Parts Lost 19 | . 3 . . . 16 Power 4 | . 1 . . . 3 Propulsion 8 | . 1 . . . 7 Utility 1 | . 1 . . . . Weapon 6 | . . . . . 6 Highest Loss Streak 8 | . 2 . . . 8 To Critical Strikes . | . . . . . . Average Backups 6 | 2 5 8 8 8 5 Power . | . . . . . . Propulsion 1 | 1 2 2 1 1 . Utility 2 | . . 3 3 4 4 Weapon 2 | . 1 3 3 3 1 Tool/Special . | . . . . . . Unused Backups 10 | . 1 . 2 . 7 Power . | . . . . . . Propulsion 1 | . . . 1 . . Utility 7 | . . . . . 7 Weapon 1 | . 1 . . . . Tool/Special 1 | . . . 1 . . Average Slot Usage (%) 92 | . 89 100 100 100 85 Engine 11 | . 11 14 14 14 7 Treads 20 | . 25 25 14 14 19 Leg 5 | . . 2 14 14 2 Wheel 2 | . 2 . . . 4 Device 13 | . 7 14 14 14 17 Storage 12 | . 14 14 14 14 9 Energy Gun 9 | . . . 4 28 19 Ballistic Gun 15 | . 28 18 19 . 3 Launcher 1 | . . 9 3 . . Peak Build Rating 35 | 6 17 18 24 29 35 Average Rating 19 | 5 7 17 20 25 30 On Entrance 15 | . 6 17 18 24 29 Avg Prop Armor Cover (%) 9 | . 6 8 7 8 16 Naked Turns . | . . . . . . Heaviest Build 25 | 14 15 14 21 20 25 Greatest Support 86 | 40 40 40 20 23 86 Greatest Overweight (x) 2 | 2 1 . 1 . 2 Average Overweight (x) . | . . . . . . Largest Inventory Capacity 9 | 8 8 8 8 8 9 Average Capacity 8 | 7 8 8 8 8 8 Most Carried 8 | 4 8 8 8 8 8 Average Carried 6 | 2 5 8 7 8 5 Final Capacity 9 | 8 8 8 8 8 9 Final Carried 8 | 4 8 8 8 8 7 Transmogrified Parts 18 | . . 2 5 4 7 Integrity Recovered 327 | . . 38 106 84 99 Class Distribution -------------------- 76% | Mutant 15% | Skirmisher 6% | Scavenger-Skirmisher Dominant Class ---------------- Mutant | -10/Materials Mutant | -10/Mines Mutant | -10/Exiles Mutant | -9/Mines Skirmisher | -8/Materials Resources | -11 -10 -10 -10 -9 -8 ----------- Run | Yrd Mat Min Exi Min Mat Matter Collected 761 | 210 273 40 . . 238 Remotely . | . . . . . . Salvage Created 1455 | . 416 55 . 57 927 Parts 90 | . 22 4 . 5 59 Haulers Intercepted 1 | . 1 . . . . Recyclers Shooed . | . . . . . . Parts Field Recycled . | . . . . . . Retrieved Matter . | . . . . . . Parts Self-Destructed . | . . . . . . Prevented . | . . . . . . Parts Restored . | . . . . . . Kills | -11 -10 -10 -10 -9 -8 ------- Run | Yrd Mat Min Exi Min Mat Combat Hostiles Destroyed 42 | . 8 3 . 4 27 Melee 4 | . . . . . 4 Guns 37 | . 8 3 . 3 23 AOE 1 | . . . . 1 . Classes Destroyed 9 | . 2 1 . . 6 Worker 1 | . . . . . 1 Builder 1 | . . . . . 1 Hauler 1 | . 1 . . . . Watcher 1 | . . . . . 1 Swarmer 21 | . . 3 . 4 14 Grunt 17 | . 8 . . . 9 Brawler 1 | . . . . . 1 Protector 1 | . . . . . 1 Sentry 2 | . . . . . 2 Best Kill Streak 5 | . 5 3 . 4 5 Combat Bots Only 5 | . 5 3 . 4 4 Max Kills in Single Turn 2 | . 1 2 . 1 2 Gunslinging 1 | . . 1 . . 1 Exploded 1 | . . . . 1 . Melee 1 | . . . . . 1 Uniques/NPCs Destroyed . | . . . . . . Combat | -11 -10 -10 -10 -9 -8 -------- Run | Yrd Mat Min Exi Min Mat Hostile Shots Fired 308 | . 46 15 . 13 234 Missed 77 | . 9 5 . 2 61 Hits 231 | . 37 10 . 11 173 Projectile 231 | . 37 10 . 11 173 Critical Strikes 7 | . 1 . . . 6 Damage Taken 2863 | . 477 84 . 87 2215 Core 476 | . 54 17 . . 405 Absorbed by Shields 36 | . . . . . 36 Core Remaining (%) 64 | 100 . . . 29 . Volleys Fired 102 | . 33 5 . 4 60 Largest 3 | . 2 2 . 2 3 Hottest 187 | . 40 40 . 106 187 Shots Fired 240 | . 66 10 . 8 156 Gun 240 | . 66 10 . 8 156 Cannon . | . . . . . . Launcher . | . . . . . . Special . | . . . . . . Kinetic 105 | . 66 10 . . 29 Thermal 131 | . . . . 4 127 Explosive . | . . . . . . Electromagnetic 4 | . . . . 4 . Robot Hit Streak 20 | . 20 4 . 4 6 Robot Miss Streak 3 | . 3 3 . 2 3 Penetration Max . | . . . . . . Secondary Targets 6 | . . 1 . 1 4 Max Gunslinging Chain 1 | . . 1 . 1 1 Shots Hit Robots 156 | . 52 5 . 6 93 Core Hits 72 | . 19 3 . 4 46 Critical Kills 1 | . 1 . . . . Critical Parts Destroyed . | . . . . . . Critical Strikes 9 | . 1 . . . 8 Burn 5 | . . . . . 5 Destroy 1 | . 1 . . . . Sever 3 | . . . . . 3 Melee Attacks 14 | . . . . . 14 Impact . | . . . . . . Slashing 14 | . . . . . 14 Piercing . | . . . . . . Sneak Attacks . | . . . . . . Combat Hostiles . | . . . . . . Follow-up Attacks . | . . . . . . Damage Inflicted 2737 | . 709 66 . 127 1835 Guns 2394 | . 709 66 . 81 1538 Cannons . | . . . . . . Explosions 46 | . . . . 46 . Melee 297 | . . . . . 297 Ramming . | . . . . . . Kinetic 959 | . 709 66 . . 184 Thermal 1440 | . . . . 86 1354 Explosive . | . . . . . . Electromagnetic 41 | . . . . 41 . Impact . | . . . . . . Slashing 297 | . . . . . 297 Piercing . | . . . . . . Highest Corruption . | . . . . . . Average Corruption . | . . . . . . Corruption Purged . | . . . . . . Corruption Blocked . | . . . . . . Overload Shots . | . . . . . . Overflow Damage 11 | . . . . . 11 Projectiles . | . . . . . . Explosions . | . . . . . . Melee 11 | . . . . . 11 Knockbacks . | . . . . . . Impact . | . . . . . . Kinetic . | . . . . . . Secondary . | . . . . . . Self-Inflicted Damage . | . . . . . . Shots . | . . . . . . Rammed . | . . . . . . Targets Rammed . | . . . . . . Kicked . | . . . . . . Crushed . | . . . . . . Highest Temperature 314 | . 10 . . 228 314 Average Temperature 110 | . 4 . . 117 110 Received Heat Transfer 1287 | . 294 . . . 993 Effects 1 | . . . . . 1 Shutdowns 1 | . . . . . 1 Siege Activations . | . . . . . . Martial Activations . | . . . . . . Shielding Activations . | . . . . . . Robots Disrupted . | . . . . . . Combat Hostiles . | . . . . . . Robots Corrupted . | . . . . . . Combat Hostiles . | . . . . . . Parts Fried . | . . . . . . Impact Corruptions . | . . . . . . Robots Melted . | . . . . . . Combat Hostiles . | . . . . . . Parts Melted 7 | . . . . . 7 Heat Transferred 3126 | . . . . 74 3052 Parts Sabotaged . | . . . . . . Parts Stolen . | . . . . . . Parts Stripped . | . . . . . . Power Chain Reactions 1 | . . . . 1 . Alert | -11 -10 -10 -10 -9 -8 ------- Run | Yrd Mat Min Exi Min Mat Maximum Alert Level 2 | . . . . . 2 Low Security (%) 68 | 100 100 100 . 100 22 Level 1 4 | . . . . . 11 Level 2 26 | . . . . . 65 Level 3 . | . . . . . . Level 4 . | . . . . . . Level 5 . | . . . . . . High Security . | . . . . . . Max Security . | . . . . . . Peak Influence 638 | . 105 83 . 95 638 Initial 13 | . . 13 . . 5 Average 181 | . 31 48 . 51 399 Influence Increases 1427 | . 228 70 . 95 1034 Destroy 0b10 Robot/C 980 | . 160 60 . 80 680 Destroy 0b10 Robot/NC 35 | . 5 . . . 30 Destroy Leader 196 | . 52 10 . 10 124 Allied During Kill 24 | . . . . . 24 Successful Hack 10 | . 10 . . . . Disable Machine 30 | . . . . . 30 Destroy Structure 32 | . 1 . . 5 26 Lose Combat Pursuer 120 | . . . . . 120 Influence Decreases 831 | . 194 91 13 80 453 Entered New Map 44 | . . 21 13 . 10 Time Decay 597 | . 164 70 . 80 283 Lost Part 190 | . 30 . . . 160 Squads Dispatched 8 | . 3 . . . 5 Investigation 2 | . 1 . . . 1 Extermination . | . . . . . . Reinforcement 3 | . 2 . . . 1 Assault 1 | . . . . . 1 Garrison 2 | . . . . . 2 Intercept . | . . . . . . Searches Triggered . | . . . . . . Construction Impeded . | . . . . . . Haulers Reinforced . | . . . . . . Active Scanning Responses . | . . . . . . Cargo Convoy Interrupts . | . . . . . . Stealth | -11 -10 -10 -10 -9 -8 --------- Run | Yrd Mat Min Exi Min Mat Distress Signals 1 | . . . . . 1 Communications Jammed . | . . . . . . Distress Signals . | . . . . . . Times Spotted 66 | . 10 3 . 4 49 Peak Tracking Total 9 | . 6 3 . 4 9 Tactical Retreats 6 | . . . . . 6 Traps | -11 -10 -10 -10 -9 -8 ------- Run | Yrd Mat Min Exi Min Mat Traps Triggered 2 | . 1 . . . 1 Indirectly . | . . . . . . Trap Hack Attempts . | . . . . . . Triggered . | . . . . . . Disarmed . | . . . . . . Reprogrammed . | . . . . . . Reused . | . . . . . . Traps Extracted . | . . . . . . Installed . | . . . . . . Triggered . | . . . . . . Machines | -11 -10 -10 -10 -9 -8 ---------- Run | Yrd Mat Min Exi Min Mat Machines Disabled 2 | . . . . . 2 Max in Single Turn . | . . . . . . Machines Repaired . | . . . . . . Machines Dismantled . | . . . . . . Machines Sabotaged . | . . . . . . Overloaded Fab Kills . | . . . . . . Hacking | -11 -10 -10 -10 -9 -8 --------- Run | Yrd Mat Min Exi Min Mat Machines Accessed 5 | . 3 . 1 . 1 Terminals 4 | . 3 . . . 1 Fabricators . | . . . . . . Repair Stations . | . . . . . . Recycling Units . | . . . . . . Scanalyzers . | . . . . . . Garrison Access . | . . . . . . Total Hacks 12 | . 9 . 1 . 2 Successful 4 | . 3 . 1 . . Failed 8 | . 6 . . . 2 Catastrophic 1 | . 1 . . . . Database Lockouts . | . . . . . . Manual 9 | . 8 . 1 . . Terminals 11 | . 9 . . . 2 Fabricators . | . . . . . . Repair Stations . | . . . . . . Recycling Units . | . . . . . . Scanalyzers . | . . . . . . Garrison Access . | . . . . . . Terminal Hacks 3 | . 2 . 1 . . Robot Analysis 2 | . 2 . . . . Proto ID Catalog 1 | . . . 1 . . Fabricator Hacks . | . . . . . . Repair Station Hacks . | . . . . . . Recycling Unit Hacks . | . . . . . . Scanalyzer . | . . . . . . Garrison Access Hacks . | . . . . . . Unauthorized Hacks 1 | . 1 . . . . Terminals 1 | . 1 . . . . Botnet 1 | . 1 . . . . Fabricators . | . . . . . . Repair Stations . | . . . . . . Recycling Units . | . . . . . . Scanalyzers . | . . . . . . Garrison Access . | . . . . . . Data Cores Recovered . | . . . . . . Used . | . . . . . . Hacking Detections 4 | . 3 . . . 1 Full Trace Events 1 | . 1 . . . . Feedback Events . | . . . . . . Feedback Blocked . | . . . . . . Robot Schematics Acquired . | . . . . . . Robots Built . | . . . . . . Authchips . | . . . . . . Time . | . . . . . . Total Robot Build Rating . | . . . . . . Part Schematics Acquired . | . . . . . . Parts Built . | . . . . . . Authchips . | . . . . . . Time . | . . . . . . Total Part Build Rating . | . . . . . . Part Studies Acquired . | . . . . . . Parts Repaired . | . . . . . . Time . | . . . . . . Parts Recycled . | . . . . . . Recycled Matter . | . . . . . . Retrieved Matter . | . . . . . . Retrieved Components . | . . . . . . Parts Scanalyzed . | . . . . . . Part Schematics Acquired . | . . . . . . Parts Damaged . | . . . . . . Bothacking | -11 -10 -10 -10 -9 -8 ------------ Run | Yrd Mat Min Exi Min Mat Used RIF Installer . | . . . . . . Robots Hacked . | . . . . . . Non-combat . | . . . . . . Combat . | . . . . . . Robot Hacks Applied . | . . . . . . Relay Couplers Released . | . . . . . . Fabnet Peak Effective % . | . . . . . . Robots Rewired . | . . . . . . Allies Hacked . | . . . . . . Hacks Repelled . | . . . . . . Allies | -11 -10 -10 -10 -9 -8 -------- Run | Yrd Mat Min Exi Min Mat Total Allies 2 | . . . . . 2 Largest Group 1 | . . . . . 1 Highest-Rated Group 85 | . . . . . 85 Highest-Rated Ally 85 | . . . . . 85 Total Orders . | . . . . . . Ally Attacks 24 | . . . . . 24 Total Damage 559 | . . . . . 559 Kills 10 | . . . . . 10 Allies Corrupted . | . . . . . . Allies Melted . | . . . . . . X0-1V1 Amusement Gains 78 | . 9 3 . 4 62 Average Entertainment 10 | . 17 10 . 3 10 Good Acts 6 | . . 1 . . 5 Bad Acts 8 | . . . . . 8 Intel | -11 -10 -10 -10 -9 -8 ------- Run | Yrd Mat Min Exi Min Mat Active Infowar (turns) . | . . . . . . Robot Analysis Total 2 | . 2 . . . . Derelict Logs Recovered . | . . . . . . Drone Launches . | . . . . . . Drone Recoveries . | . . . . . . Exploration | -11 -10 -10 -10 -9 -8 ------------- Run | Yrd Mat Min Exi Min Mat Turns Passed 2148 | 78 649 142 394 179 706 Spaces Moved 1018 | 43 307 66 224 105 273 Core 4 | 4 . . . . . Treads 855 | 39 298 66 224 105 123 Legs . | . . . . . . Wheels 159 | . 9 . . . 150 Hover . | . . . . . . Flight . | . . . . . . Fastest Speed 50 | 50 95 160 160 160 100 Average Speed 156 | 153 158 160 175 160 136 Slowest Speed 260 | 160 160 160 260 160 240 Overloaded Moves . | . . . . . . Propulsion Burnouts . | . . . . . . Robots Hopped . | . . . . . . Potential Cave-ins . | . . . . . . Cave-ins Triggered . | . . . . . . Exploration Rate (%) 31 | 4 45 8 60 37 37 Regions Visited 5 Branch Regions 3 Pre-discovered Areas . | . . . . . . Known Exits Taken . | . . . . . . Unknown Exits Taken 5 | 1 1 1 1 1 . Scrap Searched 1 | . . . . 1 . Spaces Dug . | . . . . . . Terrain Destroyed 5 | . . . . 5 . Melee . | . . . . . . Projectile . | . . . . . . AOE 5 | . . . . 5 . Terrain Rammed . | . . . . . . Walls Destroyed . | . . . . . . Machines Disabled . | . . . . . . Actions | -11 -10 -10 -10 -9 -8 --------- Run | Yrd Mat Min Exi Min Mat Total 1340 | 52 404 93 227 108 456 Wait 149 | . 52 23 . . 74 Move 1013 | 42 306 65 223 104 273 Hop . | . . . . . . Pick Up 21 | 4 6 . 2 . 9 Fast Attach 21 | 6 4 . . . 11 Attach 10 | . 1 . . . 9 Detach . | . . . . . . Swap 1 | . . . . . 1 Drop 9 | . 2 . 2 . 5 Fire 102 | . 33 5 . 4 60 Melee 14 | . . . . . 14 Ram . | . . . . . . Kick . | . . . . . . Crush . | . . . . . . Escape Stasis . | . . . . . . Rewire . | . . . . . . Trap . | . . . . . . Miscellaneous . | . . . . . . Route ------- -11/Scrapyard -10/Materials (discovered 2 exits: [*Min] / [*Sub]) -10/Mines -10/Exiles (discovered 2 exits: [*Min x2]) -9/Mines (discovered 2 exits: *Mat x2) -8/Materials (discovered 1 exit: [*Fac]) History --------- Turn | Location | Event 23 | -11/Scrapyard | Discovered new exit (range 15) 79 | -11/Scrapyard | Entered Materials 308 | -10/Materials | Build established: Mutant 393 | -10/Materials | Discovered new exit (range 8) 667 | -10/Materials | Made a sacrifice at D.C.S.S. Altar Unit 667 | -10/Materials | Forcibly received Sfc. Transmogifier from X0-1V1 668 | -10/Materials | Core integrity fell below 50% 680 | -10/Materials | Discovered new exit (range 7) 728 | -10/Materials | Entered Mines 795 | -10/Mines | Deemed a non-threat by the Exiles lab entrance 795 | -10/Mines | Discovered new exit (range 5) 808 | -10/Mines | X0-1V1 activates XOMVISION 870 | -10/Mines | Entered Exiles 891 | -10/Exiles | Discovered new exit (range 15) 909 | -10/Exiles | Met 8R-AWN 934 | -10/Exiles | Met EX-HEX 979 | -10/Exiles | Met EX-BIN 1008 | -10/Exiles | Aligned with FarCom system 1010 | -10/Exiles | Given EX-Vault access code 1050 | -10/Exiles | Opened EX-Vault 1060 | -10/Exiles | Found Chronowheel 1079 | -10/Exiles | Found Supersonic Drone Bay 1112 | -10/Exiles | Warned to stay clear of 0b10 Research branches 1118 | -10/Exiles | Exiles lab attacked by MAIN.C 1238 | -10/Exiles | Discovered new exit (range 10) 1264 | -10/Exiles | Left Exiles lab with Supersonic Drone Bay 1264 | -10/Exiles | Entered Mines 1409 | -9/Mines | Discovered new exit (range 7) 1412 | -9/Mines | Discovered new exit (range 15) 1443 | -9/Mines | Entered Materials 1443 | -8/Materials | Evolved 4 slots: Propulsion x2, Utility x1, Weapon x1 1464 | -8/Materials | X0-1V1 sent you into danger 1541 | -8/Materials | X0-1V1 sent hostile S-10 Pest (x3) 1577 | -8/Materials | X0-1V1 sent allied B-75 Beast (x1) 1843 | -8/Materials | First assault squad dispatched 1923 | -8/Materials | X0-1V1 sent you into danger 1968 | -8/Materials | Inventory capacity permanently improved by X0-1V1 (+1; -100 max core) 2008 | -8/Materials | X0-1V1 turns hostiles against one another 2034 | -8/Materials | Lost 8 parts (1p4n3w) 2035 | -8/Materials | Garrison activated, responded to threat 2041 | -8/Materials | Core integrity fell below 50% 2101 | -8/Materials | Core integrity fell below 20% 2129 | -8/Materials | Discovered new exit (range 10) 2149 | -8/Materials | Destroyed by Y-45 Defender with Heavy Assault Rifle Last Messages --------------- 02093_ R-06 Scavenger collects Lgt. Armor Plating. 02093_ K-01 Serf collects debris. 02095_ Acquired 4 matter. 02096_ K-01 Serf collects debris. 02100_ G-47 Trooper Particle Gun severed. 02104_ K-01 Serf collects debris. 02108_ Acquired Particle Gun. 02109_ K-01 Serf collects debris. 02112_ M-13 Machinist fits Backup Laser I on G-47 Trooper. 02113_ K-01 Serf collects debris. 02129_ EXIT=FOUND 02135_ S-10 Pest emerges from the garrison. 02143_ Particle Gun destroyed. 02147_ Destroyed Flight Unit. 02147_ S-10 Pest destroyed. 02147_ Lgt. Treads destroyed. 02149_ Imp. Ion Engine destroyed. 02149_ X0-1V1 bursts into laughter! Map ----- +----------------------------------------------------+ | ?????????? ????# #??????????# #?####### | | ???????+??? ???#% #?#######??# #?# | | ???????# ??? ???# #?]]//]]#??# #?#""" | | ???????##+###+#### #?]]//]]#??# ###""" | | ???????# % # #? #??# % #""" | | ???????# ! # ## ####% =/ | | ???????# # ^ ^ %[#""" | | ???????# =#% % #""" | | ???????# ] %+% % #""" | | ???????#= %# % # | | ???????# ! ## !! """"""" ###+### | | ???????# ## /! """"""" | | ???????##### ""#### ^""""""" | | ???????????#S""?#"" ! """"""" !% | | ???????????#"" ?#"T """"""" ##### % | | ???????????####?#"" / % #??## | | ????????????????###g #??## | | ???????############ *! #???# | | ???????# *! ????# | | ???????# < ????# | | ???????# ????# | | ???????####+######+########+########????# | | ????????????????# #?????????????????# | | ????????????????# !]= #?????????????????# | | ????????????????# != #?????????????????# | | ????????????????# @= !#?????????????????# | | ????????????????# s%sY#?????????????????# | | ????????????????# "*" #????????????????# | | ????????????????# "G" ##????????????????? | | ????????????????# """ #?????????????????? | | ????????????????# #?????????????????? | | ????????????????#######?????????????????? | | ??????????????????????????????????????????? | | ??????????????????????????????????????????? | | ??????????????????????????????????????????? | | ??????????????????????????????????????????? | | ??????????????????????????????????????????? | | ??????????????????????????????????????????? | | ??????????????????????????????????????????? | | ??????????????????????????????????????????? | | ??????????????????????????????????????????? | | ??????????????????????????????????????????? | | ??????????????????????????????????????????? | | ??????????????????????????????????????????? | | ??????????????????????????????????????????? | | ??????????????????????????????????????????? | | ??????????????????????????????????????????? | | ??????????????????????????????????????????? | | ??????????????????????????????????????????? | | ??????????????????????????????????????????? | +----------------------------------------------------+ Best States ------------- Heat Dissipation 45 Energy Generation 18 Energy Capacity 310 Matter Stores 300 Matter Capacity 300 Sight Range 16 Terrain Scan Density 10 Evasion (%) 41 Recoil Reduction 4 Item Schematics ----------------- None Robot Schematics ------------------ None Fabricated ------------ Nothing Repaired ---------- Nothing Studied --------- None Alien Tech Used ----------------- None Achievements -------------- None Challenges ------------ None Game ------ Seed SalvageDimensionalMinigun Manual? 0 Play Time 00:16:15 Cumulative 320.4 hours Start 2026.09.03 @ 00:05:41 End 2026.09.03 @ 13:36:19 Sessions 3 Manual Loads 0 Difficulty Rogue Special Mode None Game No. 307 Rogue 253 Adventurer 54 Explorer 0 Win Type - Total 14 Types 10/0/1/1/0/0/0/1/0/1 Lore% 78 Gallery% 68 Achievement% 62 Wizard Run 0 Options --------- Layout 1 ASCII 0 Keyboard 0 Movement Mouse Keybinds 1 Fullscreen 2 Font 32/Tamsyn Map View 50x35 Zoom Use 0% Tactical HUD 1 Map Filters NONE Filters NONE Steam 1 RUN: e95affea-8db3-4f73-bbc5-2b09899038d2